bitfinex/quotes_BTCUSD_20250530
["timestamp","ask_amount","ask_price","bid_price","bid_amount"]
[1748613664058,0.0158,105690.0,105680.0,0.01454085]
[1748613664270,0.02526091,105690.0,105680.0,0.01454085]
[1748613664726,0.025261,105690.0,105680.0,0.01454085]
[1748613664954,0.02526091,105690.0,105680.0,0.01454085]
[1748613665188,0.13077412,105700.0,105680.0,0.01454085]
[1748613665415,0.14984171,105700.0,105680.0,0.1055948]
[1748613665820,0.003,105690.0,105680.0,0.1055948]
[1748613666330,0.002,105690.0,105680.0,0.1055948]
[1748613666547,0.002,105690.0,105680.0,0.77480203]
[1748613666769,0.002,105690.0,105680.0,0.77243662]
[1748613667227,0.002,105690.0,105680.0,0.2191148]
[1748613667454,0.04540668,105700.0,105680.0,0.2191148]
[1748613667675,0.00946082,105690.0,105680.0,0.2191148]
[1748613667904,0.03906759,105700.0,105690.0,0.01454085]
[1748613668342,0.05476759,105700.0,105690.0,0.01454085]
[1748613668844,0.22585529,105690.0,105680.0,0.1055948]
[1748613669067,0.22385529,105690.0,105680.0,0.01454085]
[1748613669309,0.03462263,105690.0,105680.0,0.01454085]
[1748613669525,0.03462209,105690.0,105680.0,0.01454085]
[1748613669754,0.05354517,105690.0,105680.0,0.01454085]
[1748613670007,0.03512353,105680.0,105670.0,0.11352]
[1748613670438,0.04458561,105680.0,105670.0,0.12806085]
[1748613670877,0.20627927,105690.0,105670.0,0.12806085]
[1748613671138,0.00946172,105680.0,105670.0,0.12806085]
[1748613671354,0.02838588,105680.0,105670.0,0.01454085]
[1748613671604,0.22709949,105680.0,105670.0,0.01454085]
[1748613671862,0.22709949,105680.0,105640.0,0.01126701]
[1748613671863,0.19876879,105650.0,105640.0,0.01126701]
[1748613672095,1.00855445,105650.0,105640.0,0.10232096]
[1748613672333,1.00855445,105650.0,105620.0,0.01502169]
[1748613672334,0.19880696,105630.0,105620.0,0.01502169]
[1748613672575,0.01893266,105630.0,105600.0,0.0597264]
[1748613672800,0.01893319,105630.0,105610.0,0.09105395]
[1748613673047,0.53878895,105640.0,105610.0,0.09105395]
[1748613673284,0.0094653,105640.0,105610.0,0.09342095]
[1748613673530,0.55417237,105650.0,105630.0,0.53732182]
[1748613673531,0.004,105650.0,105630.0,0.53732182]
[1748613673790,0.002,105650.0,105640.0,0.1055948]
[1748613674022,0.01892729,105660.0,105640.0,0.10796103]
[1748613674253,0.02839125,105660.0,105640.0,0.1055948]
[1748613674468,0.0345281,105660.0,105640.0,0.1055948]
[1748613674943,0.00946449,105650.0,105640.0,0.1055948]
[1748613675173,0.03452765,105660.0,105640.0,0.1055948]
[1748613675420,0.00946449,105650.0,105640.0,0.1055948]
[1748613675634,0.00946449,105650.0,105640.0,0.10574158]
[1748613675635,0.0094644,105650.0,105640.0,0.10574158]
[1748613675823,0.03039365,105650.0,105640.0,0.01468763]
[1748613676125,0.03039365,105650.0,105640.0,0.00014678]
[1748613676366,0.3576,105660.0,105640.0,0.09120073]
[1748613676578,0.00946458,105650.0,105640.0,0.10574158]
[1748613676795,0.0094644,105650.0,105640.0,0.10574158]
[1748613677016,0.37652765,105660.0,105640.0,0.10574158]
[1748613677232,0.0114644,105650.0,105640.0,0.10574158]
[1748613677455,0.0094644,105650.0,105640.0,0.10574158]
[1748613677892,0.01892898,105650.0,105640.0,0.10574158]
[1748613678120,0.36506369,105660.0,105650.0,0.01454085]
[1748613678339,0.35892756,105660.0,105650.0,0.01454085]
[1748613678570,0.37785592,105660.0,105650.0,0.01454085]
[1748613678787,0.09468002,105670.0,105650.0,0.01454085]
[1748613678998,0.00946351,105660.0,105650.0,0.01454085]
[1748613679206,0.01146351,105660.0,105650.0,0.01454085]
[1748613679432,0.02092711,105660.0,105650.0,0.01454085]
[1748613679648,0.23355892,105670.0,105650.0,0.01454085]
[1748613679900,0.004,105660.0,105650.0,0.64291662]
[1748613680163,0.008,105660.0,105650.0,0.64291662]
[1748613680625,0.004,105660.0,105650.0,0.65791662]
[1748613680844,0.004,105670.0,105650.0,0.65791662]
[1748613681060,0.004,105670.0,105660.0,0.62837577]
[1748613681984,0.001,105680.0,105670.0,0.01454085]
[1748613682200,0.001,105680.0,105670.0,0.64291662]
[1748613682432,0.001,105680.0,105670.0,0.1055948]
[1748613682878,0.001,105680.0,105670.0,0.64291662]
[1748613683115,0.003,105680.0,105670.0,0.75583662]
[1748613683345,0.005,105680.0,105670.0,0.77173662]
[1748613683849,0.003,105680.0,105670.0,0.77173662]
[1748613684297,0.0483805,105700.0,105670.0,0.77173662]
[1748613684539,0.0483805,105700.0,105690.0,0.01454085]
[1748613684540,0.02,105700.0,105690.0,0.01454085]
[1748613684771,0.02,105700.0,105690.0,0.64291662]
[1748613685721,0.02014675,105700.0,105690.0,0.64291662]
[1748613686180,0.02014675,105700.0,105690.0,0.64691662]
[1748613686653,0.02014675,105700.0,105690.0,0.66581662]
[1748613687353,0.02014675,105700.0,105690.0,0.1125948]
[1748613687605,0.02014675,105700.0,105690.0,0.64991662]
[1748613687863,0.02014675,105700.0,105690.0,0.1125948]
[1748613688100,0.02014675,105700.0,105690.0,0.76279662]
[1748613689269,0.02014675,105700.0,105690.0,2.68214095]
[1748613689501,0.02014675,105700.0,105690.0,2.69160213]
[1748613689738,0.02014675,105700.0,105690.0,2.69160195]
[1748613689968,0.02014675,105700.0,105690.0,2.68035327]
[1748613690197,0.02014675,105700.0,105690.0,2.70105232]
[1748613690447,0.0164,105750.0,105710.0,0.21943653]
[1748613690675,0.07575399,105740.0,105730.0,0.55186267]
[1748613690915,0.07575399,105740.0,105730.0,0.1055948]
[1748613691668,0.30272391,105740.0,105730.0,0.1055948]
[1748613691903,0.31932383,105740.0,105730.0,0.1055948]
[1748613692125,0.31932383,105740.0,105730.0,0.01454085]
[1748613692126,0.1207243,105740.0,105730.0,0.01454085]
[1748613692362,0.31907383,105740.0,105730.0,0.01454085]
[1748613692591,0.12247412,105740.0,105730.0,0.01454085]
[1748613692820,0.3116173,105740.0,105730.0,0.01454085]
[1748613693092,0.32107445,105740.0,105730.0,0.01454085]
[1748613693321,0.01891466,105730.0,105720.0,0.12742085]
[1748613693552,0.01891466,105730.0,105720.0,0.2184748]
[1748613694032,0.20516107,105730.0,105680.0,0.0312]
[1748613694247,0.01892022,105700.0,105690.0,0.09105395]
[1748613694477,0.02838059,105700.0,105690.0,0.09105395]
[1748613694716,0.24305616,105700.0,105670.0,1.0061258]
[1748613694965,0.01892191,105690.0,105680.0,0.09105395]
[1748613695183,0.19871375,105680.0,105660.0,0.5214]
[1748613695438,0.19871375,105680.0,105670.0,0.09105395]
[1748613695439,0.0164,105680.0,105670.0,0.09105395]
[1748613695666,0.00946172,105680.0,105670.0,0.09105395]
[1748613696555,0.01892371,105680.0,105670.0,0.1055948]
[1748613696784,0.05434839,105680.0,105670.0,0.09105395]
[1748613697014,0.02476261,105670.0,105660.0,0.00414675]
[1748613697241,0.03422362,105680.0,105660.0,0.09756662]
[1748613697470,0.37422281,105690.0,105670.0,0.09105395]
[1748613697689,0.56345595,105690.0,105670.0,0.09105395]
[1748613697912,0.3553,105690.0,105670.0,0.1055948]
[1748613698142,0.00946091,105690.0,105680.0,0.01454085]
[1748613698377,0.0378449,105690.0,105680.0,0.01454085]
[1748613698630,0.22707828,105690.0,105680.0,0.01454085]
[1748613698881,0.22707828,105690.0,105660.0,0.00014675]
[1748613698882,0.00946261,105670.0,105660.0,0.00014675]
[1748613699110,0.04498632,105680.0,105670.0,0.01654085]
[1748613699357,0.02606181,105680.0,105670.0,0.01654085]
[1748613699599,0.36838327,105690.0,105680.0,0.01454085]
[1748613699832,0.56707756,105690.0,105680.0,0.01454085]
[1748613700068,0.38458408,105690.0,105680.0,0.01454085]
[1748613700298,0.36566136,105690.0,105670.0,0.1055948]
[1748613700526,0.36838354,105690.0,105680.0,0.01454085]
[1748613700753,0.37784517,105690.0,105680.0,0.01454085]
[1748613701023,0.01892209,105690.0,105680.0,0.01454085]
[1748613701257,0.009461,105690.0,105680.0,0.01454085]
[1748613701486,0.21761629,105690.0,105680.0,0.01454085]
[1748613701706,0.22475529,105690.0,105680.0,0.01454085]
[1748613701929,0.03552209,105690.0,105680.0,0.01454085]
[1748613702159,0.02838345,105690.0,105680.0,0.01454085]
[1748613702842,0.3554,105700.0,105680.0,0.1055948]
[1748613703092,0.0158,105710.0,105690.0,0.1055948]
[1748613703093,0.34,105710.0,105690.0,0.1055948]
[1748613703318,0.05323417,105720.0,105690.0,0.4355948]
[1748613703549,0.03431664,105720.0,105690.0,0.4355948]
[1748613703776,0.00945903,105710.0,105690.0,0.4355948]
[1748613704462,0.22701393,105720.0,105690.0,0.4355948]
[1748613704683,0.56701393,105720.0,105690.0,0.4355948]
[1748613704911,0.01045903,105710.0,105690.0,0.4355948]
[1748613705165,0.01991833,105710.0,105690.0,0.4355948]
[1748613705400,0.0283779,105710.0,105690.0,0.4355948]
[1748613705629,0.01891833,105710.0,105690.0,0.4355948]
[1748613705847,0.01891824,105710.0,105690.0,0.4355948]
[1748613706071,0.35991726,105720.0,105690.0,0.4355948]
[1748613706320,0.35045823,105720.0,105700.0,0.00236496]
[1748613706539,0.02091833,105710.0,105700.0,0.1055948]
[1748613706773,0.01145903,105710.0,105700.0,0.1055948]
[1748613707059,0.03983747,105710.0,105700.0,0.1055948]
[1748613707282,0.03037763,105710.0,105700.0,0.1055948]
[1748613707517,0.03932628,105710.0,105700.0,0.1055948]
[1748613707762,0.03932628,105710.0,105670.0,0.43633616]
[1748613707763,0.19068593,105710.0,105670.0,0.43633616]
[1748613707984,0.19068593,105710.0,105680.0,0.1055948]
[1748613707985,0.0283805,105700.0,105680.0,0.1055948]
[1748613708264,0.03784114,105700.0,105680.0,0.1055948]
[1748613708515,0.0283805,105700.0,105680.0,0.1055948]
[1748613708736,0.02838103,105700.0,105680.0,0.1055948]
[1748613708974,0.03784088,105700.0,105680.0,0.1055948]
[1748613709207,0.0094619,105680.0,105670.0,0.002]
[1748613709439,0.0156,105680.0,105670.0,0.002]
[1748613709664,0.02506181,105680.0,105670.0,0.002]
[1748613709896,0.23323679,105680.0,105670.0,0.002]
[1748613710140,0.04398623,105680.0,105670.0,0.01654085]
[1748613710392,0.03492567,105670.0,105640.0,0.11212]
[1748613710622,0.05132612,105670.0,105650.0,0.09105395]
[1748613710883,0.03532747,105660.0,105640.0,0.09105395]
[1748613711109,0.0258636,105660.0,105640.0,0.09105395]
[1748613711333,0.0094636,105660.0,105640.0,0.09105395]
[1748613711560,0.0378553,105660.0,105640.0,0.09105395]
[1748613711785,0.04389116,105660.0,105640.0,0.0912007]
[1748613712240,0.0155,105660.0,105640.0,0.0912007]
[1748613712466,0.39335206,105670.0,105650.0,0.09505395]
[1748613712707,0.38388873,105670.0,105650.0,0.09505395]
[1748613712945,0.38388855,105670.0,105650.0,0.09105395]
[1748613713202,0.3649627,105670.0,105650.0,0.09105395]
[1748613713641,0.35892585,105670.0,105650.0,0.09105395]
[1748613713642,0.35892576,105670.0,105650.0,0.09105395]
[1748613713841,0.34,105670.0,105650.0,0.09205395]
[1748613714162,0.34946261,105670.0,105650.0,0.09205395]
[1748613714398,0.36838855,105670.0,105650.0,0.09405395]
[1748613714625,0.34,105670.0,105650.0,0.09405395]
[1748613714910,0.3494627,105670.0,105650.0,0.09405395]
[1748613715132,0.34,105670.0,105660.0,0.01454085]
[1748613715367,0.03462353,105680.0,105660.0,0.1055948]
[1748613715596,0.58279965,105680.0,105660.0,0.1055948]
[1748613715820,0.24252053,105670.0,105660.0,0.01454085]
[1748613716046,0.01892765,105660.0,105650.0,0.002]
[1748613716283,0.22371449,105660.0,105650.0,0.002]
[1748613716531,0.58021449,105660.0,105650.0,0.002]
[1748613717005,0.53876933,105650.0,105640.0,0.00014675]
[1748613717257,0.73767727,105650.0,105640.0,0.00014675]
[1748613717711,0.66192328,105650.0,105640.0,0.00014675]
[1748613718236,0.20831315,105610.0,105600.0,0.03]
[1748613718477,0.22431315,105610.0,105600.0,0.03014678]
[1748613718976,0.57961315,105610.0,105600.0,0.03014678]
[1748613719424,0.57961315,105610.0,105600.0,0.03214678]
[1748613719892,0.38076817,105610.0,105600.0,0.03014678]
[1748613720130,0.38076817,105610.0,105600.0,0.03114678]
[1748613720131,0.57378132,105610.0,105600.0,0.03114678]
[1748613720405,0.37523346,105630.0,105600.0,0.03114678]
[1748613720657,0.02840226,105620.0,105600.0,0.12220073]
[1748613720897,0.3554,105630.0,105610.0,0.1055948]
[1748613721119,0.55774012,105630.0,105610.0,0.1055948]
[1748613721391,0.55774012,105630.0,105610.0,0.01454085]
[1748613721392,0.00946727,105620.0,105610.0,0.01454085]
[1748613721619,0.19880737,105630.0,105610.0,0.01454085]
[1748613721850,0.0094662,105630.0,105620.0,0.1055948]
[1748613722304,0.2206043,105650.0,105620.0,0.1055948]
[1748613722564,0.34,105640.0,105630.0,0.01454085]
[1748613722798,0.0255644,105650.0,105630.0,0.01454085]
[1748613723030,0.21771893,105640.0,105630.0,0.01454085]
[1748613723256,0.02839734,105640.0,105630.0,0.01454085]
[1748613723494,0.03403141,105640.0,105630.0,0.01454085]
[1748613723713,0.03786255,105640.0,105630.0,0.01454085]
[1748613723937,0.03413132,105640.0,105630.0,0.01454085]
[1748613724199,0.0246653,105640.0,105630.0,0.01454085]
[1748613724447,0.369395,105650.0,105630.0,0.01454085]
[1748613724682,0.36566449,105650.0,105630.0,0.01454085]
[1748613724908,0.38459392,105650.0,105630.0,0.01454085]
[1748613725161,0.37512907,105650.0,105630.0,0.01454085]
[1748613725396,0.001,105640.0,105630.0,0.01454085]
[1748613725860,0.21771947,105640.0,105620.0,0.09105395]
[1748613726095,0.0094662,105630.0,105620.0,0.01454085]
[1748613726319,0.01893445,105620.0,105600.0,0.03014678]
[1748613726569,0.0165,105630.0,105600.0,0.1299892]
[1748613726809,0.60705878,105650.0,105610.0,0.09105395]
[1748613726810,0.63725919,105650.0,105610.0,0.09105395]
[1748613727034,0.90924396,105650.0,105620.0,0.01454085]
[1748613727266,0.341,105650.0,105630.0,0.09105395]
[1748613727511,0.001,105650.0,105640.0,0.01454085]
[1748613727799,0.001,105650.0,105640.0,0.30438304]
[1748613728038,0.001,105650.0,105640.0,0.1377948]
[1748613728263,0.001,105650.0,105640.0,0.2340948]
[1748613728936,0.001,105650.0,105640.0,0.23424158]
[1748613729149,0.002,105650.0,105640.0,0.23424158]
[1748613729835,0.002,105650.0,105640.0,0.23524158]
[1748613730562,0.001,105650.0,105640.0,0.23524158]
[1748613730791,0.001,105650.0,105640.0,0.23624158]
[1748613733922,0.001,105650.0,105640.0,1.89152051]
[1748613734427,0.001,105650.0,105640.0,0.22943586]
[1748613734662,0.001,105650.0,105640.0,0.21489501]
[1748613735115,0.001,105650.0,105640.0,0.20540073]
[1748613735352,0.001,105650.0,105640.0,0.09320073]
[1748613735575,0.001,105650.0,105640.0,0.00214678]
[1748613735822,0.0164,105650.0,105640.0,0.00214678]
[1748613736729,0.001,105650.0,105640.0,0.00214678]
[1748613736958,0.0166,105650.0,105640.0,0.00214678]
[1748613737444,0.23429912,105650.0,105640.0,0.00214678]
[1748613737675,0.58033445,105650.0,105640.0,0.00214678]
[1748613739050,1.1117484,105650.0,105640.0,0.00214678]
[1748613739525,0.20831306,105610.0,105600.0,0.03]
[1748613739761,0.20831306,105610.0,105600.0,0.03896821]
[1748613739762,0.24041306,105610.0,105600.0,0.03896821]
[1748613740019,0.22471306,105610.0,105600.0,0.03896821]
[1748613740250,0.04480586,105610.0,105600.0,0.03896821]
[1748613740490,0.21778186,105610.0,105600.0,0.03896868]
[1748613740730,0.22361342,105610.0,105600.0,0.03896869]
[1748613740992,0.57981342,105610.0,105600.0,0.03014681]
[1748613741751,0.67086737,105610.0,105600.0,0.03014681]
[1748613741976,0.67086737,105610.0,105600.0,0.05014681]
[1748613742879,0.67386737,105610.0,105600.0,0.05014681]
[1748613743148,0.67386737,105610.0,105590.0,0.02]
[1748613743149,0.57026344,105600.0,105590.0,0.02]
[1748613743376,1.17711138,105600.0,105590.0,0.02]
[1748613743616,1.18711138,105600.0,105590.0,0.02]
[1748613744300,1.11235739,105600.0,105590.0,0.02]
[1748613744529,1.11635739,105600.0,105590.0,0.02]
[1748613745238,0.01894881,105540.0,105520.0,0.14200348]
[1748613745468,0.0189506,105530.0,105520.0,0.09985474]
[1748613745838,0.22740407,105540.0,105520.0,0.09985559]
[1748613745843,0.01895078,105530.0,105520.0,0.09985559]
[1748613746068,0.01895078,105530.0,105480.0,0.016]
[1748613746069,0.02843214,105510.0,105480.0,0.016]
[1748613746314,0.20851447,105510.0,105490.0,0.09105395]
[1748613746532,0.0284325,105510.0,105490.0,0.09984131]
[1748613746748,0.02843241,105510.0,105490.0,0.09982297]
[1748613746988,0.01895473,105510.0,105490.0,0.09982297]
[1748613747206,0.01895473,105510.0,105490.0,0.09982324]
[1748613747447,0.01895473,105510.0,105490.0,0.10282324]
[1748613747665,0.03790937,105510.0,105490.0,0.10282333]
[1748613747894,0.00947786,105500.0,105490.0,0.10280624]
[1748613748131,0.0379091,105510.0,105490.0,0.09405395]
[1748613748346,0.0379091,105510.0,105490.0,0.01175231]
[1748613748347,0.02843214,105510.0,105490.0,0.01175231]
[1748613748781,0.00947786,105500.0,105480.0,0.02209004]
[1748613748998,0.00947786,105500.0,105480.0,0.11588562]
[1748613749208,0.00947732,105510.0,105480.0,0.10714399]
[1748613749422,0.02843196,105510.0,105490.0,0.01454085]
[1748613749659,0.02943196,105510.0,105490.0,0.01854085]
[1748613750080,0.03790973,105510.0,105490.0,0.01454085]
[1748613750293,0.22746621,105510.0,105490.0,0.01454085]
[1748613750511,0.00947795,105500.0,105490.0,0.01454085]
[1748613750726,0.0284343,105500.0,105490.0,0.01454085]
[1748613751001,0.01895689,105500.0,105480.0,0.00749004]
[1748613751230,0.21802816,105490.0,105480.0,0.00749004]
[1748613751451,0.21802816,105490.0,105480.0,0.00549004]
[1748613751452,0.21802879,105490.0,105480.0,0.00549004]
[1748613751685,0.02843736,105490.0,105480.0,0.00249004]
[1748613751894,0.21802879,105490.0,105480.0,0.00049004]
[1748613752327,0.21802879,105490.0,105480.0,0.00249004]
[1748613752328,0.54854994,105490.0,105480.0,0.00249004]
[1748613752582,0.54854994,105490.0,105480.0,0.00049004]
[1748613752583,0.56494994,105490.0,105480.0,0.00049004]
[1748613752804,0.54854994,105490.0,105480.0,0.00549004]
[1748613753245,0.54854994,105490.0,105480.0,0.00349004]
[1748613753652,0.54854994,105490.0,105480.0,0.00049004]
[1748613753889,0.002,105490.0,105480.0,0.00049004]
[1748613754118,0.002,105490.0,105480.0,0.34735491]
[1748613754351,0.002,105490.0,105480.0,1.68962263]
[1748613754585,0.002,105490.0,105480.0,3.0371692]
[1748613755053,0.27475422,105530.0,105500.0,0.01454085]
[1748613755281,0.0189523,105520.0,105500.0,0.1055948]
[1748613755776,0.28423019,105530.0,105500.0,0.1055948]
[1748613755777,0.08522925,105530.0,105500.0,0.1055948]
[1748613756023,0.07575399,105530.0,105500.0,0.12386426]
[1748613756261,0.09470494,105530.0,105500.0,0.14046426]
[1748613756497,0.08622933,105530.0,105500.0,0.1380948]
[1748613756728,0.07675399,105530.0,105500.0,0.14046416]
[1748613756958,0.09570459,105530.0,105500.0,0.14046416]
[1748613757182,0.1051802,105530.0,105500.0,0.1380948]
[1748613757444,0.09570459,105530.0,105500.0,0.1380948]
[1748613757681,0.1051802,105530.0,105500.0,0.1380948]
[1748613757916,0.09570459,105530.0,105500.0,0.1214948]
[1748613758163,0.08622916,105530.0,105500.0,0.1214948]
[1748613758407,0.0957045,105530.0,105500.0,0.1214948]
[1748613758683,0.07675399,105530.0,105500.0,0.12386412]
[1748613758912,0.09570459,105530.0,105500.0,0.12386412]
[1748613759146,0.001,105530.0,105520.0,0.01454085]
[1748613759380,0.001,105530.0,105520.0,0.1213948]
[1748613759611,0.001,105530.0,105520.0,0.14036371]
[1748613759853,0.001,105530.0,105520.0,0.34885462]
[1748613760104,0.001,105530.0,105520.0,1.8247544]
[1748613760343,0.001,105530.0,105520.0,0.47848484]
[1748613760582,0.001,105530.0,105520.0,0.21800484]
[1748613760823,0.001,105530.0,105520.0,0.10608484]
[1748613761052,0.01894899,105540.0,105520.0,0.10608484]
[1748613761311,0.0189489,105540.0,105520.0,0.10608484]
[1748613761547,0.007,105530.0,105520.0,0.10608484]
[1748613762007,0.01894881,105540.0,105520.0,0.10608484]
[1748613762245,0.02842344,105540.0,105520.0,0.10608484]
[1748613762480,0.003,105530.0,105520.0,0.10608484]
[1748613763199,0.003,105530.0,105520.0,0.01503089]
[1748613763200,0.005,105530.0,105520.0,0.01503089]
[1748613763667,0.01447526,105530.0,105520.0,0.00049004]
[1748613763917,0.22294577,105530.0,105520.0,0.00049004]
[1748613764183,0.01895311,105520.0,105490.0,0.12732]
[1748613764422,0.00947624,105520.0,105500.0,0.09105395]
[1748613764653,0.00947624,105520.0,105500.0,0.0997945]
[1748613764883,0.01895275,105520.0,105500.0,0.0997945]
[1748613765136,0.00947696,105510.0,105500.0,0.13093535]
[1748613765393,0.22744499,105520.0,105500.0,0.11640753]
[1748613765878,0.00947696,105510.0,105500.0,0.13094838]
[1748613766108,0.00947696,105510.0,105500.0,0.13096104]
[1748613766404,0.21796875,105520.0,105500.0,0.13296105]
[1748613767082,0.01895275,105520.0,105500.0,0.13296105]
[1748613767313,0.00947633,105520.0,105500.0,0.13296105]
[1748613767545,0.0189523,105520.0,105500.0,0.13096105]
[1748613767790,0.04738174,105520.0,105500.0,0.13296105]
[1748613768030,0.03790568,105520.0,105500.0,0.13296105]
[1748613768297,0.35895113,105530.0,105500.0,0.13096105]
[1748613768550,0.34,105530.0,105510.0,0.03211004]
[1748613768858,0.34,105530.0,105510.0,0.12316399]
[1748613769042,0.34,105530.0,105510.0,0.00879679]
[1748613769043,0.01895239,105520.0,105510.0,0.00879679]
[1748613769278,0.02842881,105520.0,105500.0,0.01454085]
[1748613769490,0.01895239,105520.0,105500.0,0.1164097]
[1748613769736,0.0284289,105520.0,105500.0,0.11640993]
[1748613769962,0.01895311,105520.0,105500.0,0.02535598]
[1748613770198,0.0284298,105520.0,105500.0,0.02535598]
[1748613770658,0.01895275,105520.0,105500.0,0.02535598]
[1748613771110,0.01895419,105510.0,105500.0,0.02335598]
[1748613771341,0.01895419,105510.0,105490.0,0.11005922]
[1748613771342,0.01895401,105510.0,105490.0,0.11005922]
[1748613771568,0.02842953,105520.0,105490.0,0.22514182]
[1748613771821,0.02843187,105510.0,105490.0,0.10002182]
[1748613772050,0.02843169,105510.0,105500.0,0.002]
[1748613772281,0.01895437,105510.0,105500.0,0.01082865]
[1748613772510,0.01895437,105510.0,105500.0,0.01282865]
[1748613772815,0.01895437,105510.0,105500.0,0.01282969]
[1748613772928,0.00947705,105510.0,105500.0,0.01082969]
[1748613773158,0.0284316,105510.0,105500.0,0.01082969]
[1748613773396,0.03790919,105510.0,105500.0,0.01083728]
[1748613773628,0.22746468,105510.0,105500.0,0.00883732]
[1748613773860,0.03791252,105500.0,105490.0,0.00013922]
[1748613774094,0.00947786,105500.0,105490.0,0.01297718]
[1748613774325,0.01895599,105500.0,105490.0,0.01597713]
[1748613774557,0.01895599,105500.0,105490.0,0.00897713]
[1748613774785,0.00947786,105500.0,105490.0,0.00897713]
[1748613775256,0.54853016,105500.0,105490.0,0.00897713]
[1748613775495,0.54853016,105500.0,105490.0,0.01098071]
[1748613775729,0.54853016,105500.0,105490.0,0.01398071]
[1748613775956,0.54853016,105500.0,105490.0,0.01398166]
[1748613776181,0.35895617,105500.0,105490.0,0.01398166]
[1748613776408,0.35895617,105500.0,105490.0,0.01398079]
[1748613776409,0.56748651,105500.0,105490.0,0.01398079]
[1748613776675,0.56748723,105500.0,105490.0,0.01398079]
[1748613776890,0.56748723,105500.0,105490.0,0.01098079]
[1748613777115,0.56748723,105500.0,105490.0,0.01198079]
[1748613777346,0.56748723,105500.0,105490.0,0.00997948]
[1748613777575,0.55800901,105500.0,105490.0,0.00997947]
[1748613778479,0.5485307,105500.0,105490.0,0.00997947]
[1748613778698,0.5485307,105500.0,105490.0,0.0099784]
[1748613778932,0.34947858,105500.0,105490.0,0.00997779]
[1748613779189,0.36843484,105500.0,105490.0,0.00113922]
[1748613779417,0.37791315,105500.0,105490.0,0.00997746]
[1748613779672,0.34,105510.0,105490.0,0.11743141]
[1748613779900,0.503,105540.0,105500.0,0.1055948]
[1748613780128,0.01895086,105530.0,105510.0,0.0151]
[1748613780365,0.01894935,105540.0,105510.0,0.0151]
[1748613780615,0.07575399,105550.0,105520.0,0.02964085]
[1748613780839,0.00947427,105540.0,105520.0,0.1370948]
[1748613781061,0.44417563,105550.0,105520.0,0.1370948]
[1748613781282,0.43470163,105550.0,105520.0,0.1370948]
[1748613781510,0.00947319,105560.0,105530.0,0.0159]
[1748613781763,0.003,105540.0,105530.0,0.1209948]
[1748613781991,0.21788569,105560.0,105530.0,0.1209948]
[1748613782223,0.001,105540.0,105530.0,0.1371948]
[1748613782455,0.02842065,105550.0,105530.0,0.1371948]
[1748613782686,0.03789438,105550.0,105530.0,0.13733402]
[1748613782914,0.01894701,105550.0,105530.0,0.13733402]
[1748613783169,0.36841831,105560.0,105540.0,0.10625395]
[1748613783409,0.35894557,105560.0,105540.0,0.10625395]
[1748613783633,0.01994719,105550.0,105540.0,0.1207948]
[1748613783858,0.01047346,105550.0,105540.0,0.1055948]
[1748613784088,0.35894611,105560.0,105540.0,0.1055948]
[1748613784349,0.00947346,105550.0,105540.0,0.1055948]
[1748613784575,0.35894611,105560.0,105540.0,0.1055948]
[1748613784803,0.35894602,105560.0,105540.0,0.1055948]
[1748613785041,0.00947184,105570.0,105540.0,0.1207948]
[1748613785273,0.35894521,105560.0,105540.0,0.1364948]
[1748613785501,0.00947247,105560.0,105540.0,0.1364948]
[1748613785726,0.02841804,105560.0,105540.0,0.1364948]
[1748613785956,0.0189471,105550.0,105540.0,0.1055948]
[1748613786199,0.34,105560.0,105540.0,0.1215948]
[1748613786423,0.35894377,105570.0,105550.0,0.03054085]
[1748613786650,0.34947175,105570.0,105550.0,0.1215948]
[1748613786895,0.35894359,105570.0,105550.0,0.1215948]
[1748613787117,0.3778879,105570.0,105550.0,0.1215948]
[1748613787561,0.36841561,105570.0,105550.0,0.1215948]
[1748613787799,0.29820735,105590.0,105550.0,0.1215948]
[1748613788035,0.001,105570.0,105560.0,0.1209948]
[1748613788355,0.001,105570.0,105560.0,0.1368948]
[1748613788587,0.002,105570.0,105560.0,0.13926278]
[1748613788836,0.37788056,105590.0,105570.0,0.01454085]
[1748613789073,0.5930618,105600.0,105570.0,0.1218948]
[1748613789346,0.00947077,105580.0,105570.0,0.1218948]
[1748613789570,0.00947077,105580.0,105570.0,0.1055948]
[1748613789795,0.54835306,105590.0,105570.0,0.1055948]
[1748613790019,0.35942894,105590.0,105570.0,0.1055948]
[1748613790248,0.36889926,105590.0,105570.0,0.1055948]
[1748613790473,0.36889908,105590.0,105570.0,0.1055948]
[1748613790699,0.37936949,105590.0,105570.0,0.1219948]
[1748613790949,0.00947068,105580.0,105570.0,0.1219948]
[1748613791190,0.04735538,105580.0,105560.0,0.0164]
[1748613791418,0.04735538,105580.0,105570.0,0.001]
[1748613791419,0.22731494,105580.0,105570.0,0.001]
[1748613791643,0.03788443,105580.0,105570.0,0.001]
[1748613791874,0.21784374,105580.0,105560.0,0.09105395]
[1748613792139,0.01894244,105580.0,105560.0,0.09105395]
[1748613792366,0.00947068,105580.0,105570.0,0.001]
[1748613792823,0.03788416,105580.0,105570.0,0.001]
[1748613793044,0.01894208,105580.0,105570.0,0.001]
[1748613793268,0.00947068,105580.0,105570.0,0.001]
[1748613793503,0.02841267,105580.0,105570.0,0.001]
[1748613793735,0.02841249,105580.0,105570.0,0.001]
[1748613793949,0.03788434,105580.0,105570.0,0.001]
[1748613794161,0.02841294,105580.0,105570.0,0.001]
[1748613794376,0.03888425,105580.0,105570.0,0.001]
[1748613794604,0.03888425,105580.0,105560.0,0.09105395]
[1748613794864,0.01894539,105560.0,105550.0,0.10988]
[1748613795099,0.217865,105570.0,105560.0,0.001]
[1748613795100,0.20839117,105570.0,105560.0,0.001]
[1748613795325,0.22733566,105570.0,105560.0,0.001]
[1748613795785,0.21786408,105570.0,105550.0,0.2315748]
[1748613796039,0.01894395,105570.0,105550.0,0.2315748]
[1748613796251,0.02841624,105570.0,105550.0,0.2335748]
[1748613796678,0.02841633,105570.0,105550.0,0.2335748]
[1748613796906,0.21786493,105570.0,105550.0,0.2335748]
[1748613797180,0.01894395,105570.0,105550.0,0.2335748]
[1748613797421,0.35942894,105590.0,105560.0,0.12396316]
[1748613797649,0.35942894,105590.0,105570.0,0.015]
[1748613797650,0.00947077,105580.0,105570.0,0.015]
[1748613797874,0.01894181,105580.0,105570.0,0.1055948]
[1748613798106,0.54884248,105590.0,105570.0,0.1055948]
[1748613798339,0.00947077,105580.0,105570.0,0.1055948]
[1748613798567,0.55831231,105590.0,105570.0,0.1055948]
[1748613798816,0.35942966,105590.0,105570.0,0.1205948]
[1748613799041,0.37836967,105590.0,105570.0,0.1205948]
[1748613799267,0.00947077,105580.0,105570.0,0.1205948]
[1748613799494,0.00947068,105580.0,105570.0,0.1205948]
[1748613799753,0.36889908,105590.0,105570.0,0.1205948]